bitfinex-derivatives/quotes_SOLF0:USTF0_20260314
["timestamp","ask_amount","ask_price","bid_price","bid_amount"]
[1773512418160,3.13304435,86.83,86.781,3.80111569]
[1773512418354,3.90433257,86.837,86.781,3.80111569]
[1773512418554,3.90433257,86.829,86.781,3.80111569]
[1773512419550,3.90433257,86.829,86.786,3.80111569]
[1773512425051,3.7994682,86.827,86.786,3.80111569]
[1773512439969,3.7994682,86.824,86.786,3.80111569]
[1773512440178,3.7994682,86.819,86.786,3.80111569]
[1773512441172,3.13446087,86.81,86.775,3.97415914]
[1773512441378,3.7994682,86.809,86.775,3.97415914]
[1773512441981,6.93392907,86.8,86.765,3.97415914]
[1773512442680,3.7994682,86.8,86.765,3.97415914]
[1773512490321,3.13446087,86.79,86.754,3.92732629]
[1773512490516,3.94247228,86.789,86.754,3.92732629]
[1773512495416,3.94247228,86.789,86.743,3.92732629]
[1773512499622,3.94247228,86.789,86.742,10.373]
[1773512499623,3.94247228,86.789,86.747,3.92732629]
[1773512500629,3.94247228,86.789,86.749,3.92732629]
[1773512505828,10.367,86.798,86.751,3.92732629]
[1773512506825,3.94247228,86.797,86.751,3.92732629]
[1773512509829,3.94247228,86.797,86.757,3.92732629]
[1773512518145,3.94247228,86.797,86.759,3.84209699]
[1773512535461,10.365,86.814,86.75,3.13725138]
[1773512535462,3.76769207,86.809,86.762,3.84209699]
[1773512536464,3.76769207,86.806,86.764,3.84209699]
[1773512536670,3.76769207,86.799,86.749,3.84209699]
[1773512537368,3.76769207,86.789,86.749,3.84209699]
[1773512537563,3.76769207,86.789,86.755,10.372]
[1773512537764,3.76769207,86.789,86.749,3.84209699]
[1773512562778,3.76769207,86.789,86.752,3.67395768]
[1773512571892,3.76769207,86.789,86.754,3.78211923]
[1773512580805,3.73612889,86.825,86.771,3.78211923]
[1773512581006,9.22937303,86.824,86.791,3.78211923]
[1773512581199,3.73612889,86.834,86.791,3.78211923]
[1773512581395,3.73612889,86.832,86.791,3.78211923]
[1773512584407,3.73612889,86.842,86.792,3.78211923]
[1773512584605,3.73612889,86.842,86.801,3.78211923]
[1773512630339,3.82838872,86.839,86.786,10.368]
[1773512630536,3.82838872,86.839,86.787,3.69872331]
[1773512631630,3.87187591,86.837,86.79,3.79998693]
[1773512632633,3.87187591,86.829,86.79,3.79998693]
[1773512633332,3.13268645,86.83,86.78,3.79998693]
[1773512633333,3.87187591,86.827,86.78,3.79998693]
[1773512633544,9.10422594,86.826,86.78,3.79998693]
[1773512633742,3.87187591,86.825,86.78,3.79998693]
[1773512634643,3.87187591,86.823,86.78,3.79998693]
[1773512644147,3.87187591,86.835,86.791,3.79998693]
[1773512647557,3.87187591,86.835,86.796,3.79998693]
[1773512647861,3.87187591,86.848,86.801,3.79998693]
[1773512648357,3.87187591,86.848,86.8,3.13268645]
[1773512648358,3.87187591,86.848,86.804,3.79998693]
[1773512650061,3.87187591,86.848,86.764,28.68845497]
[1773512650062,3.87187591,86.848,86.811,3.79998693]
[1773512650261,3.87187591,86.864,86.811,3.79998693]
[1773512651556,3.87187591,86.864,86.812,10.365]
[1773512651757,3.87187591,86.864,86.813,3.79998693]
[1773512653661,3.87187591,86.864,86.81,3.13268645]
[1773512653662,3.87187591,86.864,86.817,3.79998693]
[1773512654455,3.87187591,86.849,86.807,10.366]
[1773512654655,3.87187591,86.849,86.808,3.79998693]
[1773512656266,3.87187591,86.849,86.811,3.79998693]
[1773512657666,3.87187591,86.849,86.815,3.79998693]
[1773512668675,3.87187591,86.849,86.806,10.366]
[1773512670974,3.87187591,86.849,86.806,14.31517194]
[1773512671972,3.87187591,86.849,86.807,3.94917194]
[1773512687986,3.87187591,86.849,86.809,3.94917194]
[1773512689399,3.74430138,86.856,86.813,3.94917194]
[1773512692899,10.358,86.875,86.821,3.78392018]
[1773512693104,3.89641467,86.873,86.821,3.78392018]
[1773512693403,3.89641467,86.871,86.821,3.78392018]
[1773512694505,3.89641467,86.871,86.828,10.363]
[1773512694709,3.89641467,86.871,86.828,14.14692018]
[1773512696102,3.89641467,86.871,86.829,3.78392018]
[1773512710521,3.89641467,86.871,86.83,3.13241741]
[1773512710827,3.89641467,86.871,86.831,3.78392018]
[1773512737145,9.12699134,86.87,86.831,3.78392018]
[1773512737340,3.75709524,86.868,86.831,3.78392018]
[1773512809295,4.03006775,86.879,86.836,3.82289786]
[1773512809503,4.03006775,86.879,86.841,3.82289786]
[1773512811801,4.03006775,86.879,86.83,3.99073306]
[1773512812000,3.67309615,86.869,86.83,3.99073306]
[1773512829211,3.67309615,86.869,86.83,7.12148336]
[1773512829918,3.67309615,86.869,86.831,3.99073306]
[1773512845319,3.67309615,86.869,86.833,3.7242126]
[1773512847617,3.97291977,86.878,86.833,3.7242126]
[1773512847822,3.97291977,86.878,86.835,3.7242126]
[1773512848019,3.97291977,86.892,86.841,3.7242126]
[1773512848727,3.97291977,86.892,86.851,3.7242126]
[1773512849627,3.97291977,86.901,86.861,3.7242126]
[1773512849831,3.97291977,86.912,86.871,3.7242126]
[1773512853933,3.1307503,86.91,86.865,36.24]
[1773512854131,3.97291977,86.909,86.865,36.24]
[1773512855136,3.97291977,86.909,86.865,39.9642126]
[1773512856535,3.97291977,86.909,86.866,3.7242126]
[1773512872550,3.97291977,86.909,86.867,4.03125441]
[1773512880555,3.90748896,86.921,86.871,4.03125441]
[1773512881551,3.90748896,86.921,86.877,4.03125441]
[1773512890957,36.24,86.928,86.877,4.03125441]
[1773512890958,3.90748896,86.919,86.877,4.03125441]
[1773512917595,3.90748896,86.919,86.879,3.82035052]
[1773512922899,3.90748896,86.919,86.882,3.82035052]
[1773512923091,3.90532989,86.929,86.882,3.82035052]
[1773512924502,3.90532989,86.929,86.883,10.357]
[1773512924802,3.90532989,86.929,86.884,3.82035052]
[1773512925502,3.90532989,86.929,86.887,10.356]
[1773512925704,3.90532989,86.929,86.888,3.82035052]
[1773512926203,3.90532989,86.929,86.891,3.82035052]
[1773512933211,4.05742382,86.919,86.882,3.742987]
[1773512933907,4.05742382,86.909,86.852,3.742987]
[1773512934114,4.05742382,86.909,86.854,3.742987]
[1773512934406,4.05742382,86.909,86.861,3.742987]
[1773512935007,4.05742382,86.909,86.866,3.742987]
[1773512935711,4.05742382,86.927,86.866,3.742987]
[1773512936012,4.05742382,86.927,86.871,3.742987]
[1773512936415,4.05742382,86.927,86.874,3.742987]
[1773512937508,4.05742382,86.927,86.877,10.357]
[1773512937708,4.05742382,86.927,86.878,3.742987]
[1773512944720,4.05742382,86.927,86.88,3.742987]
[1773512965642,3.8972379,86.924,86.88,3.742987]
[1773512965846,3.8972379,86.924,86.871,3.75519894]
[1773512966144,3.8972379,86.919,86.871,3.75519894]
[1773512969546,3.8972379,86.909,86.863,3.75519894]
[1773512970640,3.8972379,86.909,86.866,3.75519894]
[1773512996367,3.8972379,86.909,86.86,3.12805905]
[1773512996368,3.8972379,86.909,86.869,3.75533421]
[1773513009077,3.8972379,86.909,86.87,3.12805905]
[1773513010077,3.8972379,86.909,86.871,3.75533421]
[1773513010480,3.8972379,86.909,86.872,14.11333421]
[1773513012078,3.8972379,86.909,86.872,3.75533421]
[1773513019782,3.8972379,86.909,86.861,3.75533421]
[1773513019981,3.8972379,86.909,86.857,3.75533421]
[1773513020182,3.8972379,86.909,86.86,3.12805905]
[1773513020386,3.8972379,86.909,86.861,3.75533421]
[1773513020781,3.8972379,86.909,86.863,3.75533421]
[1773513021386,3.84541437,86.923,86.881,3.69922952]
[1773513022685,3.84541437,86.923,86.885,3.69922952]
[1773513045303,3.84541437,86.935,86.888,3.69922952]
[1773513046515,3.84541437,86.935,86.89,10.356]
[1773513046715,3.84541437,86.935,86.891,3.69922952]
[1773513081749,3.84541437,86.935,86.894,3.81929807]
[1773513096261,3.73306407,86.933,86.894,3.81929807]
[1773513165103,3.94768735,86.949,86.894,3.81929807]
[1773513165312,3.94768735,86.947,86.906,4.03160902]
[1773513166512,3.94768735,86.947,86.91,10.353]
[1773513166710,3.94768735,86.947,86.911,4.03160902]
[1773513170714,3.94768735,86.947,86.914,3.98409184]
[1773513184820,3.94768735,86.947,86.917,3.88036091]
[1773513185025,3.86500549,86.957,86.917,3.88036091]
[1773513186625,36.22,86.963,86.924,3.88036091]
[1773513186829,3.86500549,86.967,86.924,3.88036091]
[1773513187529,3.86500549,86.967,86.927,3.88036091]
[1773513194327,3.86500549,86.967,86.929,3.88036091]
[1773513195728,3.86500549,86.967,86.932,3.88036091]
[1773513196527,3.86500549,86.967,86.933,10.351]
[1773513197734,3.86500549,86.967,86.934,3.88036091]
[1773513199232,3.86500549,86.976,86.937,3.88036091]
[1773513200635,3.86500549,86.986,86.941,3.88036091]
[1773513201631,3.86500549,86.986,86.947,10.349]
[1773513202032,3.86500549,86.986,86.941,3.88036091]
[1773513202727,3.86500549,86.986,86.943,10.349]
[1773513204230,3.86500549,86.986,86.943,14.20715825]
[1773513205638,3.86500549,86.986,86.944,3.85815825]
[1773513208240,3.86500549,86.986,86.946,10.349]
[1773513208640,3.86500549,86.986,86.947,3.85815825]
[1773513209637,3.86500549,86.986,86.95,3.85815825]
[1773513210340,3.86500549,86.986,86.952,3.85815825]
[1773513213332,3.86500549,86.986,86.956,3.85815825]
[1773513225759,3.97862619,86.997,86.958,3.85815825]
[1773513226557,3.97862619,86.997,86.964,3.85815825]
[1773513227661,3.97862619,86.997,86.967,3.85815825]
[1773513233464,3.97862619,86.997,86.958,10.348]
[1773513233663,3.97862619,86.997,86.958,14.177178]
[1773513235364,3.97862619,86.997,86.96,10.348]
[1773513237666,3.97862619,86.997,86.96,14.177178]
[1773513237855,3.97862619,86.997,86.961,3.829178]
[1773513239864,3.70521548,87.007,86.966,3.829178]
[1773513242369,3.70521548,87.007,86.969,3.829178]
[1773513243666,3.70521548,87.007,86.971,3.829178]
[1773513245270,3.70521548,87.007,86.958,3.829178]
[1773513251976,3.70521548,86.989,86.944,10.349]
[1773513253174,3.70521548,86.989,86.95,10.349]
[1773513254577,3.70521548,86.989,86.95,14.178178]
[1773513256473,3.70521548,86.989,86.951,3.829178]
[1773513269886,3.70521548,86.989,86.955,3.9820466]
[1773513270883,3.69697532,86.998,86.957,3.9820466]
[1773513271080,3.69697532,86.998,86.961,3.9820466]
[1773513272689,3.69697532,86.998,86.968,14.3280466]
[1773513274183,3.69697532,87.009,86.969,3.9820466]
[1773513276191,3.69697532,87.009,86.972,3.9820466]
[1773513283097,3.69697532,87.009,86.975,3.9820466]
[1773513284491,3.69697532,87.009,86.977,3.9820466]
[1773513285191,3.69697532,87.009,86.979,14.3270466]
[1773513285394,3.69697532,87.009,86.98,3.9820466]
[1773513305906,3.69697532,87.009,86.966,3.77391647]
[1773513306209,3.69697532,87.009,86.951,3.77391647]
[1773513306410,3.88719253,86.999,86.951,3.77391647]
[1773513307512,3.88719253,86.999,86.962,10.347]
[1773513310918,3.88719253,86.999,86.962,14.12091647]
[1773513315322,3.88719253,86.999,86.963,3.77391647]
[1773513317324,3.88719253,86.999,86.954,10.348]
[1773513317524,3.88719253,86.997,86.948,36.2]
[1773513317725,3.88719253,86.989,86.946,10.349]
[1773513318024,3.88719253,86.989,86.947,3.77391647]
[1773513333132,4.00541783,86.979,86.935,3.7230933]
[1773513333339,4.00541783,86.969,86.927,3.7230933]
[1773513366669,3.76548081,86.959,86.927,3.7230933]
[1773513395199,3.76548081,86.959,86.916,4.02250668]
[1773513399799,3.76548081,86.959,86.918,4.02250668]
[1773513468652,3.76548081,86.959,86.922,4.00637141]
[1773513479272,4.04391452,86.972,86.922,4.00637141]
[1773513479468,4.04391452,86.97,86.922,4.00637141]
[1773513479672,4.04391452,86.968,86.922,4.00637141]
[1773513479871,4.04391452,86.966,86.922,4.00637141]
[1773513480072,9.03689788,86.965,86.922,4.00637141]
[1773513480275,9.03689788,86.964,86.922,4.00637141]
[1773513480574,9.03689788,86.963,86.922,4.00637141]
[1773513480763,9.03689788,86.962,86.922,4.00637141]
[1773513480968,4.04391452,86.964,86.922,4.00637141]
[1773513481170,4.04391452,86.964,86.926,3.90347524]
[1773513481572,4.04391452,86.974,86.926,3.90347524]
[1773513481773,4.04391452,86.974,86.931,3.90347524]
[1773513490078,4.04391452,86.974,86.934,3.90347524]
[1773513491674,4.04391452,86.959,86.911,3.90347524]
[1773513527399,3.68590208,86.956,86.911,3.90347524]
[1773513537409,3.66424128,86.949,86.911,3.90347524]
[1773513543813,3.66424128,86.948,86.9,3.80904735]
[1773513544116,3.66424128,86.939,86.9,3.80904735]
[1773513544714,3.66424128,86.929,86.9,3.80904735]
[1773513544914,3.66424128,86.929,86.888,3.80904735]
[1773513546519,3.66424128,86.929,86.89,3.80904735]
[1773513547408,3.66424128,86.929,86.89,6.93414129]
[1773513547610,3.66424128,86.929,86.891,3.80904735]
[1773513569325,3.66424128,86.929,86.881,10.357]
[1773513569326,3.66424128,86.929,86.881,3.86595815]
[1773513570630,3.92595857,86.927,86.881,3.86595815]
[1773513603273,3.7017926,86.914,86.872,285.82226033]
[1773513603570,3.7017926,86.914,86.863,3.69396306]
[1773513604570,3.7017926,86.911,86.863,3.69396306]
[1773513605370,3.7017926,86.911,86.871,3.69396306]
[1773513632798,3.96599953,86.918,86.873,3.94402843]
[1773513639704,3.96599953,86.918,86.874,10.358]
[1773513639900,3.96599953,86.918,86.875,3.94402843]
[1773513651610,3.81494445,86.916,86.875,3.94402843]
[1773513653611,3.81494445,86.916,86.854,36.22]
[1773513653612,3.81494445,86.916,86.88,3.87128772]
[1773513654512,3.81494445,86.916,86.883,3.87128772]
[1773513656508,3.81494445,86.916,86.849,28.73720908]
[1773513656509,197.74220321,86.928,86.886,3.87128772]
[1773513657503,197.74220321,86.928,86.887,10.356]
[1773513657706,197.74220321,86.928,86.888,3.87128772]
[1773513657912,3.81494445,86.927,86.888,3.87128772]
[1773513659122,3.81494445,86.927,86.891,3.87128772]
[1773513662718,3.81494445,86.946,86.901,3.87128772]
[1773513663620,3.81494445,86.967,86.921,3.87128772]
[1773513664524,3.81494445,86.967,86.922,3.87128772]
[1773513667522,3.81494445,86.967,86.924,3.87128772]
[1773513670630,3.81494445,86.967,86.928,3.87128772]
[1773513672528,3.81494445,86.967,86.93,3.87128772]
[1773513673523,3.81494445,86.967,86.933,14.22228772]
[1773513676425,3.81494445,86.967,86.934,3.87128772]
[1773513678432,3.81494445,86.967,86.938,10.35]
[1773513679538,3.81494445,86.967,86.945,10.349]
[1773513680435,36.22,86.986,86.952,10.348]
[1773513680436,3.81494445,86.977,86.952,10.348]
[1773513681542,3.81494445,86.977,86.961,10.347]
[1773513684536,3.94586431,86.991,86.971,10.346]
[1773513704648,3.94586431,87.002,86.971,10.346]
[1773513704850,3.94586431,87.002,86.974,10.346]
[1773513707350,3.94586431,86.989,86.965,10.347]
[1773513717657,3.88937653,86.987,86.945,3.92929314]
[1773513717855,3.88937653,86.979,86.945,3.92929314]
[1773513718762,3.88937653,86.979,86.952,10.348]
[1773513725766,3.88937653,86.979,86.945,3.92929314]
[1773513728159,36.2,86.988,86.948,3.92929314]
[1773513728864,3.88937653,86.987,86.948,3.92929314]
[1773513729568,3.88937653,86.987,86.951,3.92929314]
[1773513729770,36.2,86.988,86.951,3.92929314]
[1773513730662,36.2,86.988,86.963,10.347]
[1773513744880,36.2,86.988,86.967,3.91426302]
[1773513745584,18.822,86.988,86.979,10.345]
[1773513748082,3.7404576,87.017,86.982,3.91426302]
[1773513748284,36.2,87.015,86.982,3.91426302]
[1773513748481,3.7404576,87.017,86.982,3.91426302]
[1773513748680,36.2,87.015,86.982,3.91426302]
[1773513749285,36.2,87.015,86.984,10.345]
[1773513753592,3.7404576,87.009,86.984,10.345]
[1773513782608,3.7404576,87.009,86.974,10.346]
[1773513785114,3.7404576,87.009,86.967,4.05740267]
[1773513785322,3.68318748,86.999,86.967,4.05740267]
[1773513801819,3.68318748,86.999,86.967,14.40440267]
[1773513808523,3.68318748,86.999,86.975,10.346]
[1773513829448,3.68318748,86.999,86.967,14.40440267]
[1773513829652,3.68318748,86.999,86.968,4.0034067]
[1773513843664,36.2,87.015,86.957,3.99429525]
[1773513843665,3.70516464,86.989,86.957,3.99429525]
[1773513847072,3.70516464,86.979,86.945,3.99429525]
[1773513847870,3.70516464,86.979,86.945,14.34329525]
[1773513855384,3.70516464,86.979,86.946,3.99429525]
[1773513863784,3.98232206,86.986,86.946,3.99429525]
[1773513867295,3.98232206,86.986,86.947,14.2079206]
[1773513873689,3.98232206,86.985,86.947,3.8589206]
[1773513877794,14.32732206,86.985,86.937,14.2089206]
[1773513877993,3.98232206,86.979,86.937,14.2089206]
[1773513878596,3.98232206,86.979,86.938,3.8589206]
[1773513883799,3.98232206,86.977,86.938,3.8589206]
[1773513897610,3.91035268,86.976,86.938,3.8589206]
[1773513901810,10.346,86.977,86.9,28.73720908]
[1773513901811,3.91035268,86.969,86.925,3.85016562]
[1773513903819,3.91035268,86.979,86.925,3.85016562]
[1773513904118,3.91035268,86.977,86.925,3.85016562]
[1773513904518,3.91035268,86.977,86.927,3.85016562]
[1773513905724,3.91035268,86.977,86.93,3.85016562]
[1773513906824,3.91035268,86.975,86.93,3.85016562]
[1773513921238,9.06772738,86.974,86.93,3.85016562]
[1773513921535,3.91035268,86.975,86.93,3.85016562]
[1773513921732,12.8096852,86.974,86.93,3.85016562]
[1773513921937,3.73019063,86.974,86.93,3.85016562]
[1773513933143,9.08138648,86.973,86.93,3.85016562]
[1773513933344,3.73019063,86.974,86.93,3.85016562]
[1773513933545,12.811673,86.973,86.93,3.85016562]
[1773513933748,3.73019063,86.973,86.93,3.85016562]
[1773513939252,12.81443803,86.972,86.93,3.85016562]
[1773513939444,3.73019063,86.972,86.93,3.85016562]
[1773513942354,9.08662718,86.971,86.93,3.85016562]
[1773513942657,3.73019063,86.972,86.93,3.85016562]
[1773513942857,12.81681781,86.971,86.93,3.85016562]
[1773513943057,3.73019063,86.971,86.93,3.85016562]
[1773513944258,9.08924457,86.97,86.93,3.85016562]
[1773513944460,3.73019063,86.971,86.93,3.85016562]
[1773513944661,3.73019063,86.98,86.93,3.85016562]
[1773513944857,3.73019063,86.978,86.93,3.85016562]
[1773513945057,12.81888355,86.977,86.93,3.85016562]
[1773513945258,9.08869292,86.976,86.93,3.85016562]
[1773513945458,3.73019063,86.977,86.93,3.85016562]
[1773513945459,9.08869292,86.975,86.93,3.85016562]
[1773513945763,3.73019063,86.977,86.93,3.85016562]
[1773513945959,9.08824558,86.976,86.93,3.85016562]
[1773513946155,9.08824558,86.975,86.93,3.85016562]
[1773513946357,9.08824558,86.974,86.93,3.85016562]
[1773513946556,3.73019063,86.977,86.93,3.85016562]
[1773513946861,9.08962452,86.976,86.93,3.85016562]
[1773513947061,9.08962452,86.975,86.93,3.85016562]
[1773513947361,3.73019063,86.977,86.93,3.85016562]
[1773513947658,12.81923878,86.976,86.93,3.85016562]
[1773513947860,9.08904815,86.975,86.93,3.85016562]
[1773513948054,3.73019063,86.976,86.93,3.85016562]
[1773513948252,3.73019063,86.974,86.93,3.85016562]
[1773513949662,3.73019063,86.974,86.931,3.93260418]
[1773513962573,3.66364829,86.983,86.941,3.80765472]
[1773513966574,3.66364829,86.98,86.941,3.80765472]
[1773513966775,3.66364829,86.98,86.932,3.80765472]
[1773513967379,3.66364829,86.979,86.932,3.80765472]
[1773513967575,3.66364829,86.978,86.932,3.80765472]
[1773513976987,3.12214412,86.98,86.932,3.80765472]
[1773513976988,3.66364829,86.976,86.932,3.80765472]
[1773513985602,3.79531855,86.974,86.932,3.80765472]
[1773514006311,3.79531855,86.974,86.933,14.13696216]
[1773514008814,3.79531855,86.974,86.934,3.78596216]
[1773514017418,3.79531855,86.974,86.936,3.71100845]
[1773514019516,3.79531855,86.974,86.94,10.35]
[1773514032936,3.79531855,86.974,86.94,14.06100845]
[1773514035130,3.79531855,86.974,86.94,10.35]
[1773514035336,3.79531855,86.974,86.941,3.71100845]
[1773514042045,3.12364044,86.98,86.941,3.71100845]
[1773514042242,6.95363142,86.98,86.941,3.71100845]
[1773514043446,3.82999098,86.98,86.941,3.71100845]
[1773514046345,3.82999098,86.979,86.941,3.71100845]
[1773514056553,3.82999098,86.977,86.941,3.71100845]
[1773514093270,3.8162586,86.992,86.941,3.71100845]
[1773514094468,36.2,87.0,86.952,3.83360927]
[1773514094666,10.77427592,87.02,86.918,36.2]
[1773514094667,3.8162586,87.013,86.961,3.83360927]
[1773514095176,10.341,87.012,86.963,10.347]
[1773514095376,10.341,87.012,86.964,3.83360927]
[1773514097373,3.12341845,87.01,86.964,3.83360927]
[1773514101485,3.12341845,87.0,86.964,3.83360927]
[1773514103385,3.12341845,87.01,86.964,3.83360927]
[1773514109090,4.00006379,87.005,86.964,3.83360927]
[1773514109497,3.12341845,87.0,86.964,3.83360927]
[1773514114698,3.12341845,87.0,86.966,3.94710533]
[1773514115300,7.12348224,87.0,86.966,3.94710533]
[1773514115499,4.00006379,86.999,86.966,3.94710533]
[1773514117091,4.00006379,86.999,86.97,10.346]
[1773514128513,4.00006379,86.999,86.97,14.29310533]
[1773514129112,3.12341845,87.0,86.971,3.94710533]
[1773514130914,3.90637552,86.999,86.962,3.66472289]
[1773514140218,3.90637552,86.999,86.953,10.348]
[1773514140422,3.90637552,86.999,86.942,3.79268007]
[1773514141627,3.90637552,86.999,86.952,14.14068007]
[1773514144827,3.90637552,86.999,86.953,3.79268007]
[1773514148330,3.68858846,86.998,86.953,3.79268007]
[1773514148629,3.68858846,86.989,86.944,3.79268007]
[1773514149627,3.68858846,86.989,86.946,3.79268007]
[1773514158936,3.68858846,86.989,86.949,10.349]
[1773514159137,3.68858846,86.989,86.95,3.79268007]
[1773514163942,3.7966695,87.003,86.953,4.04056232]
[1773514165640,3.7966695,87.003,86.963,10.347]
[1773514165841,3.7966695,87.003,86.963,14.38756232]
[1773514167350,3.7966695,87.003,86.964,4.04056232]
[1773514169954,3.7966695,87.003,86.966,4.04056232]
[1773514194472,3.7966695,87.003,86.971,10.346]
[1773514198472,4.03523435,87.013,86.974,3.6977964]
[1773514198776,4.03523435,87.011,86.974,3.6977964]
[1773514199577,4.03523435,87.011,86.976,10.346]
[1773514199977,4.03523435,87.011,86.977,3.6977964]
[1773514207685,4.03523435,87.022,86.98,3.6977964]
[1773514208585,4.03523435,87.022,86.983,3.6977964]
[1773514212492,3.12031476,87.02,86.983,3.6977964]
[1773514212787,4.03523435,87.019,86.983,3.6977964]
[1773514236698,3.74248141,87.017,86.974,3.6843433]
[1773514238603,3.74248141,87.015,86.974,3.6843433]
[1773514238801,3.74248141,87.009,86.96,3.12031476]
[1773514239002,3.74248141,86.989,86.946,3.6843433]
[1773514293351,3.99664563,86.987,86.946,3.6843433]
[1773514293650,3.99664563,86.979,86.937,3.82655004]
[1773514294546,3.99664563,86.979,86.939,3.82655004]
[1773514320278,3.89601275,86.989,86.943,3.80434641]
[1773514320477,9.0400169,86.988,86.943,3.80434641]
[1773514320771,9.0400169,86.987,86.943,3.80434641]
[1773514320974,3.89601275,86.989,86.943,3.80434641]
[1773514321181,9.04014129,86.988,86.943,3.80434641]
[1773514321380,9.04014129,86.987,86.943,3.80434641]
[1773514321582,3.89601275,86.989,86.945,3.80434641]
[1773514321783,9.04020906,86.988,86.945,3.80434641]
[1773514322082,3.89601275,86.989,86.945,3.80434641]
[1773514322083,9.04020906,86.987,86.945,3.80434641]
[1773514322390,3.89601275,86.989,86.945,3.80434641]
[1773514322581,9.04043705,86.988,86.945,3.80434641]
[1773514322879,9.04043705,86.987,86.945,3.80434641]
[1773514323079,3.89601275,86.989,86.945,3.80434641]
[1773514323280,9.04068905,86.988,86.945,3.80434641]
[1773514323481,9.04068905,86.987,86.945,3.80434641]
[1773514323680,3.89601275,86.989,86.945,3.80434641]
[1773514323881,9.04068443,86.988,86.945,3.80434641]
[1773514324180,9.04068443,86.987,86.945,3.80434641]
[1773514324382,3.89601275,86.989,86.945,3.80434641]
[1773514324583,9.04096385,86.988,86.945,3.80434641]
[1773514324783,9.04096385,86.987,86.947,3.80434641]
[1773514325085,9.04110799,86.986,86.947,3.80434641]
[1773514325284,3.89601275,86.989,86.947,3.80434641]
[1773514325481,9.04126998,86.988,86.947,3.80434641]
[1773514325684,9.04126998,86.987,86.947,3.80434641]
[1773514325884,9.04126998,86.986,86.947,3.80434641]
[1773514326188,3.89601275,86.989,86.947,3.80434641]
[1773514326383,9.04160685,86.988,86.947,3.80434641]
[1773514326683,9.04160685,86.987,86.947,3.80434641]
[1773514326879,3.89601275,86.989,86.949,3.80434641]
[1773514327081,9.0416063,86.988,86.949,3.80434641]
[1773514327284,9.0416063,86.987,86.949,3.80434641]
[1773514327584,9.04196896,86.986,86.949,3.80434641]
[1773514327885,3.89601275,86.989,86.949,3.80434641]
[1773514328086,9.04196896,86.988,86.949,3.80434641]
[1773514328282,9.04196896,86.987,86.949,3.80434641]
[1773514328487,9.04196896,86.986,86.949,3.80434641]
[1773514328683,3.89601275,86.989,86.949,3.80434641]
[1773514328883,9.04226788,86.988,86.949,3.80434641]
[1773514329187,9.04226788,86.987,86.949,3.80434641]
[1773514329383,9.04226788,86.986,86.949,3.80434641]
[1773514329689,3.89601275,86.989,86.949,3.80434641]
[1773514337092,3.89601275,86.987,86.949,3.80434641]
[1773514361610,3.12307942,86.98,86.949,3.80434641]
[1773514363302,3.89601275,86.987,86.949,3.80434641]
[1773514364310,9.04990715,86.986,86.949,3.80434641]
[1773514364510,3.89601275,86.987,86.949,3.80434641]
[1773514364712,9.05025017,86.986,86.949,3.80434641]
[1773514364909,3.89601275,86.987,86.949,3.80434641]
[1773514365110,9.05025017,86.986,86.949,3.80434641]
[1773514365408,3.89601275,86.987,86.949,3.80434641]
[1773514365608,12.89333223,86.986,86.949,3.80434641]
[1773514365811,3.84303799,86.986,86.949,3.80434641]
[1773514373315,3.72896262,86.984,86.949,3.80434641]
[1773514422152,3.72896262,86.984,86.956,3.99401631]
[1773514429456,3.73669019,87.013,86.958,3.99401631]
[1773514429656,3.73669019,87.013,86.961,3.99401631]
[1773514430558,3.73669019,87.013,86.971,3.96075125]
[1773514434067,3.12295035,87.01,86.971,3.96075125]
[1773514434269,3.69097229,87.009,86.971,3.96075125]
[1773514437074,3.69097229,87.019,86.974,3.68895701]
[1773514441081,3.69097229,87.019,86.977,3.68895701]
[1773514442679,3.69097229,87.019,86.979,14.03395701]
[1773514443380,3.69097229,87.019,86.98,3.68895701]
[1773514447177,10.341,87.018,86.98,3.68895701]
[1773514447377,3.69097229,87.017,86.98,3.68895701]
[1773514447574,3.69097229,87.009,86.967,3.68895701]
[1773514447774,3.69097229,86.999,86.958,3.68895701]
[1773514454080,3.69097229,86.989,86.949,3.68895701]
[1773514454583,3.69097229,86.989,86.951,3.68895701]
[1773514455690,3.69097229,86.989,86.953,3.68895701]
[1773514456784,3.69097229,86.999,86.955,3.68895701]
[1773514457086,3.69097229,87.009,86.961,3.68895701]
[1773514457386,3.69097229,87.009,86.968,3.68895701]
[1773514458787,3.69097229,87.009,86.96,3.12175453]
[1773514458788,3.69097229,87.009,86.971,3.68895701]
[1773514602289,4.04150029,87.007,86.971,3.68895701]
[1773514609393,4.04150029,87.005,86.962,3.95202509]
[1773514624413,4.04150029,87.005,86.964,3.78826899]
[1773514651334,4.04150029,87.005,86.966,3.97753719]
[1773514654237,3.83008164,87.003,86.966,3.97753719]
[1773514680358,3.81672202,87.001,86.966,3.97753719]
[1773514690563,21.4263051,87.046,86.948,205.70754473]
[1773514690564,14.35836007,87.071,87.02,3.12124548]